Cogmind - Beta 15 @@@ ROGUE MODE // 2025.07.25 @ 18:44:28 Player: Florist Result: Destroyed by P-80 Master with Gamma Rifle Performance ------------- Evolutions (7) 3500 Regions Visited (14) 2800 Robots Destroyed (130) 650 Value Destroyed (3100) 3100 Prototype IDs (34) 680 Alien Tech Used (0) 0 Bonus (1103) 1103 TOTAL SCORE: 11833 Bonus ------- High Alert Combat Kills 15 Follower Combat Kills 88 Entered Garrisons 200 Used RIF Installer 500 Aligned with FarCom 300 Cogmind --------- Core Integrity 0/1300 Matter 280/300 Energy 220/220 System Corruption 3% Temperature Cool (0) Movement Flying (106) Ox1 Location -3/Research Parts ------- > --- POWER (2) -------- Light Antimatter Reactor Micro Antimatter Reactor > --- PROPULSION (8) --- Xenon Bombardment Thruster Xenon Bombardment Thruster Xenon Bombardment Thruster Xenon Bombardment Thruster Diametric Drive > --- UTILITY (8) ------ Advanced Cooling System Triangulator Advanced Visual Processing Unit Experimental Thermal Shield > --- WEAPON (3) ------- Great Axe Enhanced Force Lance > --- INVENTORY (5) ---- Improved Ion Engine Xenon Bombardment Thruster Datajack Peak State ------------ > --- POWER ------------ Fission Core Micro Fission Core > --- PROPULSION ------- Gravmag System Cooled Airjet Cooled Airjet Cooled Airjet Cooled Airjet Cooled Airjet Antigrav System Antigrav System > --- UTILITY ---------- Medium Storage Unit Advanced Visual Processing Unit Advanced Melee Analysis Suite Actuator Array Improved Actuator Array Improved Actuator Array Force Booster Improved Medium Armor Plating > --- WEAPON ----------- Blade Saw Chainsword Chainsword > --- INVENTORY -------- Gravmag System Improved Gyrokinetic Inverter Force Booster Bomb Drone Bay Datajack Blade Saw Blade Saw Vibroblade [Rating: 97] Favorites ----------- Power Ion Engine Engine Ion Engine Power Core Fission Core Reactor Light Antimatter Reactor Propulsion Light Treads Treads Light Treads Wheel Compact Wheel Hover Unit Cooled Airjet Flight Unit Surge Thruster Utility Huge Storage Unit Device Seismic Detector Storage Huge Storage Unit Processor Advanced Visual Processing Unit Hackware Relay Coupler [NC] Protection Medium Armor Plating Weapon EM Pulse Gun Energy Gun EM Pulse Gun Ballistic Gun Light Assault Rifle Ballistic Cannon Gauss Cannon Special Weapon Plasma Cutter Slashing Weapon Chainsword Piercing Weapon Enhanced Force Lance Special Melee Weapon Datajack Build | -11 -10 -10 -10 -9 -8 -8 -8 -7 -6 -6 -6 -5 -4 -3 ------- Run | Yrd Mat Min Exi Min Mat Gar Mat Fac Fac Was Fac Fac Fac Res Slots Evolved 14 | . . . . . 4 . . 2 2 . . 2 2 2 Power 1 | . . . . . . . . . . . . . 1 . Propulsion 6 | . . . . . 2 . . 2 1 . . . 1 . Utility 6 | . . . . . 2 . . . 1 . . 1 . 2 Weapon 1 | . . . . . . . . . . . . 1 . . Parts Attached 124 | 7 7 . 3 . 16 12 5 17 1 . 20 5 . 31 Power 16 | 1 1 . . . 3 1 . 1 . . 3 1 . 5 Engine 9 | 1 1 . . . 3 1 . 1 . . 1 . . 1 Core 4 | . . . . . . . . . . . 2 1 . 1 Reactor 3 | . . . . . . . . . . . . . . 3 Propulsion 50 | 2 1 . . . 5 5 . 8 . . 10 2 . 17 Treads 11 | 2 1 . . . 4 4 . . . . . . . . Leg . | . . . . . . . . . . . . . . . Wheel 1 | . . . . . . 1 . . . . . . . . Hover 19 | . . . . . 1 . . . . . 10 2 . 6 Flight 19 | . . . . . . . . 8 . . . . . 11 Utility 33 | 2 2 . 3 . 3 2 3 4 1 . 4 2 . 7 Device 15 | 1 . . 3 . . . . 1 . . 3 1 . 6 Storage 4 | 1 2 . . . . . . 1 . . . . . . Processor 7 | . . . . . 1 . 2 1 1 . 1 . . 1 Hackware 1 | . . . . . . . . 1 . . . . . . Protection 6 | . . . . . 2 2 1 . . . . 1 . . Artifact . | . . . . . . . . . . . . . . . Weapon 25 | 2 3 . . . 5 4 2 4 . . 3 . . 2 Energy Gun 12 | 1 3 . . . 5 3 . . . . . . . . Energy Cannon . | . . . . . . . . . . . . . . . Ballistic Gun 1 | 1 . . . . . . . . . . . . . . Ballistic Cannon 2 | . . . . . . . 2 . . . . . . . Launcher . | . . . . . . . . . . . . . . . Special Weapon 1 | . . . . . . 1 . . . . . . . . Impact Weapon . | . . . . . . . . . . . . . . . Slashing Weapon 7 | . . . . . . . . 3 . . 3 . . 1 Piercing Weapon 1 | . . . . . . . . . . . . . . 1 Special Melee Weapon 1 | . . . . . . . . 1 . . . . . . Unidentified Prototypes 10 | . . . 2 . 3 . . . . . 3 . . 2 Corrupted Parts 3 | . . . . . . . . 3 . . . . . . System Corruption 16 | . . . . . . . . 16 . . . . . . Parts Lost 47 | . 2 . . . 4 7 . 1 . . 9 1 . 23 Power 5 | . . . . . 1 . . . . . 1 . . 3 Propulsion 27 | . . . . . 1 3 . 1 . . 7 . . 15 Utility 8 | . . . . . . 3 . . . . 1 1 . 3 Weapon 7 | . 2 . . . 2 1 . . . . . . . 2 Highest Loss Streak 12 | . 2 . . . 2 3 . 1 . . 6 1 . 12 To Critical Strikes . | . . . . . . . . . . . . . . . Average Backups 14 | 3 14 18 18 18 18 17 24 10 7 7 8 7 8 3 Power . | . 1 1 1 1 . 1 2 . . . . . . . Propulsion 5 | 1 7 9 8 8 8 6 7 1 . . . . 1 1 Utility 4 | . 2 4 5 5 5 5 10 5 3 3 3 2 3 . Weapon 3 | . 2 3 2 3 3 3 4 3 3 3 4 3 3 . Tool/Special . | . . . . . . . . . . . . . . . Unused Backups 30 | . 2 . 2 . 13 7 . 4 . . . . . 2 Power 1 | . . . . . 1 . . . . . . . . . Propulsion 15 | . . . 1 . 7 6 . . . . . . . 1 Utility 8 | . . . 1 . 2 1 . 3 . . . . . 1 Weapon 6 | . 2 . . . 3 . . 1 . . . . . . Tool/Special . | . . . . . . . . . . . . . . . Average Slot Usage (%) 92 | . 100 100 92 100 94 96 96 96 91 93 91 98 99 43 Engine 8 | . 14 14 14 14 7 9 9 7 6 6 3 . . 1 Treads 23 | . 28 28 28 28 35 35 36 2 . . . . . . Hover 4 | . . . . . . . . . . . 11 40 41 12 Flight 4 | . . . . . . . . 40 46 46 27 . . 6 Device 8 | . 14 14 7 14 9 5 . 2 . . 5 7 10 8 Storage 9 | . 14 14 14 14 9 9 9 7 6 6 6 5 5 . Processor 7 | . . . . . 7 9 15 14 18 20 19 14 10 3 Protection 3 | . . . . . 7 10 9 . . . . 4 5 . Energy Gun 14 | . 24 28 28 28 17 17 1 . . . . . . . Slashing Weapon 3 | . . . . . . . . 8 13 13 13 16 15 4 Peak Build Rating 97 | 7 8 11 19 16 35 45 44 50 48 49 71 81 90 97 Average Rating 32 | 5 7 9 13 16 26 37 41 41 47 48 53 75 89 60 On Entrance 36 | . 7 8 11 16 16 35 36 41 41 48 49 69 80 90 Naked Turns 3 | . . . . . . . . . . . . . . 3 Heaviest Build 117 | 14 90 90 90 90 103 116 117 114 23 23 32 47 52 62 Greatest Support 100 | 40 40 40 40 40 84 100 100 100 24 24 58 62 71 98 Greatest Overweight (x) 6 | . 2 2 2 2 1 6 1 2 . . 1 . . 3 Average Overweight (x) . | . 1 2 2 2 1 1 1 1 . . . . . . Largest Inventory Capacity 25 | 8 25 25 25 25 25 25 25 25 10 10 10 10 10 10 Average Capacity 19 | 7 21 25 24 25 25 25 25 11 10 10 10 10 10 5 Most Carried 25 | 5 17 20 25 25 25 25 25 25 9 9 10 10 10 10 Average Carried 17 | 3 14 18 21 24 24 24 25 11 8 8 9 8 9 3 Final Capacity 25 | 8 25 25 25 25 25 25 25 10 10 10 10 10 10 5 Final Carried 25 | 5 17 20 24 25 25 25 25 10 8 9 10 10 10 3 Class Distribution -------------------- 61% | Mutant 14% | Scavenger-Mutant 9% | Sprinter 6% | Scavenger-Sprinter 4% | Scavenger-Skirmisher Dominant Class ---------------- Mutant | -10/Materials Mutant | -10/Mines Mutant | -10/Exiles Mutant | -9/Mines Mutant | -8/Materials Mutant | -8/Garrison Scavenger-Skirmisher | -8/Materials Scavenger-Mutant | -7/Factory Scavenger-Sprinter | -6/Factory Scavenger-Sprinter | -6/Waste Scavenger-Sprinter | -6/Factory Sprinter | -5/Factory Sprinter | -4/Factory Mutant | -3/Research Resources | -11 -10 -10 -10 -9 -8 -8 -8 -7 -6 -6 -6 -5 -4 -3 ----------- Run | Yrd Mat Min Exi Min Mat Gar Mat Fac Fac Was Fac Fac Fac Res Matter Collected 2426 | 280 153 . . . 237 396 386 22 21 . 536 125 20 250 Remotely . | . . . . . . . . . . . . . . . Salvage Created 6282 | 127 679 . . . 1312 381 430 22 21 . 1455 453 191 1211 Parts 329 | 16 43 . . . 64 33 32 2 2 . 62 19 5 51 Haulers Intercepted 17 | . 2 . . . 6 . 3 . . . 4 1 . 1 Recyclers Shooed 12 | . 1 . . . 4 . 3 . 1 . 1 . . 2 Parts Field Recycled . | . . . . . . . . . . . . . . . Retrieved Matter . | . . . . . . . . . . . . . . . Parts Self-Destructed . | . . . . . . . . . . . . . . . Prevented . | . . . . . . . . . . . . . . . Kills | -11 -10 -10 -10 -9 -8 -8 -8 -7 -6 -6 -6 -5 -4 -3 ------- Run | Yrd Mat Min Exi Min Mat Gar Mat Fac Fac Was Fac Fac Fac Res Combat Hostiles Destroyed 50 | . 9 . . . 6 9 6 . . . 9 1 1 9 Melee 20 | . . . . . . . . . . . 9 1 1 9 Guns 22 | . 9 . . . 5 8 . . . . . . . . Cannons 6 | . . . . . . . 6 . . . . . . . AOE 1 | . . . . . . 1 . . . . . . . . Classes Destroyed 16 | 3 6 . . . 1 3 2 . . . 1 . . . Worker 12 | 1 1 . . . 2 . 1 . 1 . 2 . . 4 Builder 11 | . 2 . . . 1 . 3 . . . 1 2 . 2 Tunneler 5 | 4 1 . . . . . . . . . . . . . Hauler 17 | . 2 . . . 6 . 3 . . . 4 1 . 1 Recycler 20 | 1 2 . . . 7 . . . . . 3 2 1 4 Mechanic 1 | . . . . . . . 1 . . . . . . . Operator 4 | . 1 . . . . . . 1 . . 1 . 1 . Drone 2 | . . . . . . 1 . . . . 1 . . . Watcher 11 | . 2 . . . . 1 2 . . . 4 . . 2 Swarmer 14 | . 4 . . . . 3 . . . . . . . 7 Cutter 3 | . . . . . . 3 . . . . . . . . Grunt 13 | . 5 . . . 2 1 3 . . . 1 . . 1 Sentry 11 | . . . . . 4 1 2 . . . 3 . 1 . Hunter 2 | . . . . . . . 1 . . . . 1 . . Programmer 5 | . . . . . . . . . . . 4 . . 1 Behemoth 1 | . . . . . . 1 . . . . . . . . Best Kill Streak 7 | 3 5 . . . 7 3 6 1 1 . 4 2 1 6 Combat Bots Only 5 | . 3 . . . 2 3 3 . . . 2 1 1 5 Max Kills in Single Turn 2 | 1 1 . . . 2 1 2 1 1 . 1 1 1 1 Gunslinging . | . . . . . . . . . . . . . . . Exploded 1 | . . . . . . 1 . . . . . . . . Melee 1 | . . . . . . . . . . . 1 1 1 1 Uniques/NPCs Destroyed . | . . . . . . . . . . . . . . . Combat | -11 -10 -10 -10 -9 -8 -8 -8 -7 -6 -6 -6 -5 -4 -3 -------- Run | Yrd Mat Min Exi Min Mat Gar Mat Fac Fac Was Fac Fac Fac Res Hostile Shots Fired 615 | . 69 . . . 32 86 20 . . . 138 11 10 249 Missed 211 | . 17 . . . 11 20 7 . . . 57 3 . 96 Hits 404 | . 52 . . . 21 66 13 . . . 81 8 10 153 Melee 12 | . . . . . . 12 . . . . . . . . Projectile 392 | . 52 . . . 21 54 13 . . . 81 8 10 153 Critical Strikes 17 | . . . . . . 9 . . . . . . 1 7 Part Disruptions 1 | . . . . . . . . . . . 1 . . . Damage Taken 7561 | . 468 . . . 356 1719 199 129 . . 848 152 216 3474 Core 2049 | . 51 . . . 30 414 18 27 . . 157 22 25 1305 Absorbed by Shields . | . . . . . . . . . . . . . . . Regen/Repaired (Parts) 123 | . . . . . . . . . . . . 95 . 28 Core Remaining (%) 80 | 100 . . . 79 . . 16 96 . . 81 97 97 . Volleys Fired 209 | 10 65 . . . 61 43 30 . . . . . . . Largest 2 | 2 2 . . . 2 2 2 . . . . . . . Hottest 90 | 70 90 . . . 90 90 80 . . . . . . . Shots Fired 403 | 20 122 . . . 118 83 60 . . . . . . . Gun 343 | 20 122 . . . 118 83 . . . . . . . . Cannon 60 | . . . . . . . 60 . . . . . . . Launcher . | . . . . . . . . . . . . . . . Special . | . . . . . . . . . . . . . . . Kinetic 100 | 10 30 . . . . . 60 . . . . . . . Thermal 64 | 10 54 . . . . . . . . . . . . . Explosive . | . . . . . . . . . . . . . . . Electromagnetic 239 | . 38 . . . 118 83 . . . . . . . . Robot Hit Streak 13 | 4 9 . . . 13 8 9 . . . . . . . Robot Miss Streak 8 | 2 6 . . . 3 8 6 . . . . . . . Penetration Max 1 | . . . . . . . 1 . . . . . . . Secondary Targets 2 | . 1 . . . . 1 . . . . . . . . Max Gunslinging Chain 1 | . 1 . . . . 1 . . . . . . . . Shots Hit Robots 406 | 10 62 . . . 80 48 31 15 3 . 71 21 14 51 Core Hits 184 | 9 27 . . . 37 30 17 2 1 . 28 8 3 22 Critical Kills . | . . . . . . . . . . . . . . . Critical Parts Destroyed . | . . . . . . . . . . . . . . . Critical Strikes 29 | . . . . . 3 . 3 2 1 . 10 4 2 4 Blast 3 | . . . . . . . 3 . . . . . . . Corrupt 3 | . . . . . 3 . . . . . . . . . Sever 23 | . . . . . . . . 2 1 . 10 4 2 4 Melee Attacks 251 | . . . . . . . . 18 5 . 97 29 25 77 Impact . | . . . . . . . . . . . . . . . Slashing 235 | . . . . . . . . 6 5 . 97 29 25 73 Piercing 4 | . . . . . . . . . . . . . . 4 Sneak Attacks 49 | . . . . . . . . 9 2 . 15 7 1 15 Combat Hostiles 6 | . . . . . . . . . . . 4 2 . . Follow-up Attacks 26 | . . . . . . . . 2 1 . 10 4 6 3 Damage Inflicted 11429 | 106 830 . . . 1123 730 1017 99 111 . 3257 917 560 2679 Guns 2641 | 106 786 . . . 1063 686 . . . . . . . . Cannons 1017 | . . . . . . . 1017 . . . . . . . Explosions 148 | . 44 . . . 60 44 . . . . . . . . Melee 7623 | . . . . . . . . 99 111 . 3257 917 560 2679 Ramming . | . . . . . . . . . . . . . . . Kinetic 1157 | 30 110 . . . . . 1017 . . . . . . . Thermal 616 | 76 436 . . . 60 44 . . . . . . . . Explosive . | . . . . . . . . . . . . . . . Electromagnetic 2033 | . 284 . . . 1063 686 . . . . . . . . Impact . | . . . . . . . . . . . . . . . Slashing 7431 | . . . . . . . . 99 111 . 3257 917 560 2487 Piercing 192 | . . . . . . . . . . . . . . 192 Highest Corruption 16 | . . . . . 4 4 4 16 . . 9 . 1 2 Average Corruption 4 | . . . . . 3 4 4 9 . . 6 . 1 1 Corruption Purged . | . . . . . . . . . . . . . . . Corruption Blocked . | . . . . . . . . . . . . . . . Effects 103 | . . . . . 29 31 16 9 . . 16 . 2 . Message Errors 22 | . . . . . 7 5 3 2 . . 4 . 1 . Matter Fused 26 | . . . . . 3 14 6 2 . . 1 . . . Heat Flow Errors 13 | . . . . . 7 1 2 2 . . 1 . . . Energy Discharges 13 | . . . . . 4 4 2 1 . . 2 . . . Parts Fused 2 | . . . . . 1 . . . . . 1 . . . Data Loss (minor) 15 | . . . . . 4 4 . 2 . . 5 . . . Data Loss (major) 4 | . . . . . . . 2 . . . 2 . . . Misfires 6 | . . . . . 3 3 . . . . . . . . Alerts 2 | . . . . . . . 1 . . . . . 1 . Overload Shots . | . . . . . . . . . . . . . . . Overflow Damage 866 | . . . . . . . 1 . 36 . 177 70 63 519 Projectiles 1 | . . . . . . . 1 . . . . . . . Explosions . | . . . . . . . . . . . . . . . Melee 865 | . . . . . . . . . 36 . 177 70 63 519 Knockbacks 7 | . . . . . . . 7 . . . . . . . Impact . | . . . . . . . . . . . . . . . Kinetic 6 | . . . . . . . 6 . . . . . . . Secondary 1 | . . . . . . . 1 . . . . . . . Self-Inflicted Damage 79 | . . . . . 46 33 . . . . . . . . Shots 2 | . . . . . 1 1 . . . . . . . . Rammed . | . . . . . . . . . . . . . . . Targets Rammed . | . . . . . . . . . . . . . . . Kicked . | . . . . . . . . . . . . . . . Crushed . | . . . . . . . . . . . . . . . Highest Temperature 763 | 90 344 . . . 280 763 378 241 209 172 309 . 2 259 Average Temperature 109 | 34 129 . . . 51 166 167 76 88 80 85 . 1 72 Received Heat Transfer 1662 | . 120 . . . 108 839 99 . . . 27 . 48 421 Effects 27 | . 7 . . . . 18 2 . . . . . . . Shutdowns 6 | . 1 . . . . 4 1 . . . . . . . Energy Bleed 5 | . 1 . . . . 3 1 . . . . . . . Interference 6 | . 3 . . . . 3 . . . . . . . . Matter Decay 4 | . 1 . . . . 3 . . . . . . . . Short Circuit 2 | . . . . . . 2 . . . . . . . . Damage (minor) 3 | . 1 . . . . 2 . . . . . . . . Damage (core) 1 | . . . . . . 1 . . . . . . . . Siege Activations . | . . . . . . . . . . . . . . . Martial Activations . | . . . . . . . . . . . . . . . Shielding Activations . | . . . . . . . . . . . . . . . Robots Disrupted . | . . . . . . . . . . . . . . . Combat Hostiles . | . . . . . . . . . . . . . . . Robots Corrupted 2 | . . . . . 2 . . . . . . . . . Combat Hostiles 1 | . . . . . 1 . . . . . . . . . Parts Fried 7 | . . . . . 6 1 . . . . . . . . Impact Corruptions . | . . . . . . . . . . . . . . . Robots Melted . | . . . . . . . . . . . . . . . Combat Hostiles . | . . . . . . . . . . . . . . . Parts Melted 2 | . 1 . . . . . . . . . 1 . . . Heat Transferred 1436 | 222 1064 . . . 100 50 . . . . . . . . Parts Sabotaged . | . . . . . . . . . . . . . . . Parts Stolen . | . . . . . . . . . . . . . . . Parts Stripped . | . . . . . . . . . . . . . . . Power Chain Reactions 4 | . 1 . . . 2 1 . . . . . . . . Alert | -11 -10 -10 -10 -9 -8 -8 -8 -7 -6 -6 -6 -5 -4 -3 ------- Run | Yrd Mat Min Exi Min Mat Gar Mat Fac Fac Was Fac Fac Fac Res Maximum Alert Level 2 | . . . . . . 2 1 . . . . . . . Low Security (%) 82 | 100 100 100 . 100 100 32 . 100 100 100 100 100 100 100 Level 1 14 | . . . . . . 49 100 . . . . . . . Level 2 3 | . . . . . . 18 . . . . . . . . Level 3 . | . . . . . . . . . . . . . . . Level 4 . | . . . . . . . . . . . . . . . Level 5 . | . . . . . . . . . . . . . . . High Security . | . . . . . . . . . . . . . . . Max Security . | . . . . . . . . . . . . . . . Peak Influence 519 | 10 65 . . . 75 519 397 116 20 18 161 94 30 152 Initial 252 | . . . . . . . 252 116 . 3 12 74 . 15 Average 78 | 1 8 . . . 10 240 295 45 2 8 71 27 4 90 Influence Increases 3202 | 30 327 . . . 314 629 282 6 20 15 641 98 82 758 Destroy 0b10 Robot/C 1040 | . 180 . . . 120 240 120 . . . 160 20 20 180 Destroy 0b10 Robot/NC 415 | 30 55 . . . 80 10 50 5 5 . 80 25 10 65 Destroy Leader 262 | . 28 . . . 62 10 40 . . . 74 12 10 26 Allied During Kill 5 | . . . . . . 5 . . . . . . . . Successful Hack 60 | . 17 . . . 12 14 . . . . . 9 . 8 Disable Machine 135 | . 15 . . . 30 15 45 . . . . 15 . 15 Anti-Garrison Action 250 | . . . . . . 250 . . . . . . . . Destroy Structure 105 | . 2 . . . 10 25 27 1 . . 12 2 12 14 Partial Spotted 270 | . . . . . . . . . 15 15 135 15 30 60 Lose Combat Pursuer 660 | . 30 . . . . 60 . . . . 180 . . 390 Influence Decreases 3073 | 30 327 . . . 314 110 545 262 10 7 507 250 52 659 Entered New Map 513 | . . . . . . . 267 140 . 7 6 78 . 15 Time Decay 2001 | 30 307 . . . 292 . 278 112 10 . 411 167 52 342 Lost Part 447 | . 20 . . . 22 70 . 10 . . 90 5 . 230 Lost Ally 112 | . . . . . . 40 . . . . . . . 72 Squads Dispatched 24 | . 1 . . . 4 . 1 2 . . 7 2 2 5 Investigation 9 | . . . . . . . 1 . . . 3 1 2 2 Extermination 6 | . . . . . . . . 1 . . 2 1 . 2 Reinforcement 5 | . 1 . . . 1 . . 1 . . 1 . . 1 Assault . | . . . . . . . . . . . . . . . Garrison 4 | . . . . . 3 . . . . . 1 . . . Intercept . | . . . . . . . . . . . . . . . Searches Triggered . | . . . . . . . . . . . . . . . Construction Impeded . | . . . . . . . . . . . . . . . Haulers Reinforced . | . . . . . . . . . . . . . . . Active Scanning Responses . | . . . . . . . . . . . . . . . Cargo Convoy Interrupts . | . . . . . . . . . . . . . . . Stealth | -11 -10 -10 -10 -9 -8 -8 -8 -7 -6 -6 -6 -5 -4 -3 --------- Run | Yrd Mat Min Exi Min Mat Gar Mat Fac Fac Was Fac Fac Fac Res Distress Signals 15 | . 1 . . . 3 2 1 . . . 3 . 1 4 Communications Jammed . | . . . . . . . . . . . . . . . Distress Signals . | . . . . . . . . . . . . . . . Times Spotted 160 | . 21 . . . 10 14 14 2 . 2 34 1 6 56 Peak Tracking Total 16 | . 5 . . . 4 4 5 1 . 3 7 1 7 16 Tactical Retreats 16 | . 1 . . . . 2 . . . . 6 . . 7 Traps | -11 -10 -10 -10 -9 -8 -8 -8 -7 -6 -6 -6 -5 -4 -3 ------- Run | Yrd Mat Min Exi Min Mat Gar Mat Fac Fac Was Fac Fac Fac Res Traps Triggered 17 | . . . . . 1 3 1 2 1 . 5 2 1 1 Indirectly . | . . . . . . . . . . . . . . . Trap Hack Attempts . | . . . . . . . . . . . . . . . Triggered . | . . . . . . . . . . . . . . . Disarmed . | . . . . . . . . . . . . . . . Reprogrammed . | . . . . . . . . . . . . . . . Reused . | . . . . . . . . . . . . . . . Traps Extracted . | . . . . . . . . . . . . . . . Installed . | . . . . . . . . . . . . . . . Triggered . | . . . . . . . . . . . . . . . Machines | -11 -10 -10 -10 -9 -8 -8 -8 -7 -6 -6 -6 -5 -4 -3 ---------- Run | Yrd Mat Min Exi Min Mat Gar Mat Fac Fac Was Fac Fac Fac Res Machines Disabled 10 | . 1 . . . 2 2 3 . . . . 1 . 1 Max in Single Turn 2 | . 1 . . . 2 1 1 . . . . 1 . 1 Garrison Access 5 | . . . . . . . . . . . 3 . 1 1 Garrison Relay 1 | . . . . . . 1 . . . . . . . . Machines Repaired . | . . . . . . . . . . . . . . . Machines Dismantled 1 | . . . . . . 1 . . . . . . . . Machines Sabotaged . | . . . . . . . . . . . . . . . Overloaded Fab Kills . | . . . . . . . . . . . . . . . Hacking | -11 -10 -10 -10 -9 -8 -8 -8 -7 -6 -6 -6 -5 -4 -3 --------- Run | Yrd Mat Min Exi Min Mat Gar Mat Fac Fac Was Fac Fac Fac Res Machines Accessed 42 | . 7 1 2 . 7 1 . . . . 11 5 4 4 Terminals 24 | . 7 . . . 5 1 . . . . 5 2 2 2 Fabricators 4 | . . . . . . . . . . . 2 1 1 . Repair Stations 3 | . . . . . . . . . . . . 2 . 1 Recycling Units . | . . . . . . . . . . . . . . . Scanalyzers 2 | . . . . . 1 . . . . . 1 . . . Garrison Access 6 | . . . . . 1 . . . . . 3 . 1 1 Total Hacks 90 | . 22 1 2 . 18 3 . . . . 20 11 6 7 Successful 43 | . 11 1 2 . 11 1 . . . . 6 7 1 3 Failed 46 | . 10 . . . 7 2 . . . . 14 4 5 4 Catastrophic 12 | . . . . . 2 1 . . . . 5 2 2 . Database Lockouts 1 | . 1 . . . . . . . . . . . . . Manual 51 | . 21 . 1 . 15 . . . . . 1 6 3 4 Terminals 63 | . 22 . . . 15 3 . . . . 11 5 3 4 Fabricators 7 | . . . . . . . . . . . 4 1 2 . Repair Stations 7 | . . . . . . . . . . . . 5 . 2 Recycling Units . | . . . . . . . . . . . . . . . Scanalyzers 4 | . . . . . 2 . . . . . 2 . . . Garrison Access 6 | . . . . . 1 . . . . . 3 . 1 1 Terminal Hacks 9 | . 2 1 2 . 1 1 . . . . 1 . . 1 Record 1 | . . . 1 . . . . . . . . . . . Robot Analysis 2 | . 1 . . . 1 . . . . . . . . . Open Door 1 | . . 1 . . . . . . . . . . . . Branch Access Points 3 | . 1 . . . . . . . . . 1 . . 1 Emergency Access Points 1 | . . . . . . 1 . . . . . . . . Proto ID Catalog 1 | . . . 1 . . . . . . . . . . . Fabricator Hacks 1 | . . . . . . . . . . . . 1 . . Network Status 1 | . . . . . . . . . . . . 1 . . Repair Station Hacks 4 | . . . . . . . . . . . . 4 . . Scan Component 2 | . . . . . . . . . . . . 2 . . Repair 2 | . . . . . . . . . . . . 2 . . Recycling Unit Hacks . | . . . . . . . . . . . . . . . Scanalyzer 4 | . . . . . 2 . . . . . 2 . . . Insert Component 2 | . . . . . 1 . . . . . 1 . . . Analyze 2 | . . . . . 1 . . . . . 1 . . . Garrison Access Hacks 6 | . . . . . 1 . . . . . 3 . 1 1 Unlock Access 1 | . . . . . 1 . . . . . . . . . Seal Access 5 | . . . . . . . . . . . 3 . 1 1 Unauthorized Hacks 19 | . 9 . . . 7 . . . . . . 2 . 1 Terminals 17 | . 9 . . . 7 . . . . . . 1 . . Botnet 8 | . 4 . . . 3 . . . . . . 1 . . Skim 9 | . 5 . . . 4 . . . . . . . . . Fabricators . | . . . . . . . . . . . . . . . Repair Stations 2 | . . . . . . . . . . . . 1 . 1 Patch 2 | . . . . . . . . . . . . 1 . 1 Recycling Units . | . . . . . . . . . . . . . . . Scanalyzers . | . . . . . . . . . . . . . . . Garrison Access . | . . . . . . . . . . . . . . . Data Cores Recovered 2 | . . . . . . . . . . . 1 . 1 . Used . | . . . . . . . . . . . . . . . Hacking Detections 26 | . 4 . . . 4 1 . . . . 7 4 3 3 Full Trace Events 3 | . . . . . . . . . . . 1 . 2 . Feedback Events . | . . . . . . . . . . . . . . . Feedback Blocked . | . . . . . . . . . . . . . . . Robot Schematics Acquired . | . . . . . . . . . . . . . . . Robots Built . | . . . . . . . . . . . . . . . Authchips . | . . . . . . . . . . . . . . . Time . | . . . . . . . . . . . . . . . Total Robot Build Rating . | . . . . . . . . . . . . . . . Part Schematics Acquired 2 | . . . . . 1 . . . . . 1 . . . Parts Built . | . . . . . . . . . . . . . . . Authchips . | . . . . . . . . . . . . . . . Time . | . . . . . . . . . . . . . . . Total Part Build Rating . | . . . . . . . . . . . . . . . Parts Repaired 2 | . . . . . . . . . . . . 2 . . Time 108 | . . . . . . . . . . . . 108 . . Parts Recycled . | . . . . . . . . . . . . . . . Recycled Matter . | . . . . . . . . . . . . . . . Retrieved Matter . | . . . . . . . . . . . . . . . Retrieved Components . | . . . . . . . . . . . . . . . Parts Scanalyzed 2 | . . . . . 1 . . . . . 1 . . . Part Schematics Acquired 2 | . . . . . 1 . . . . . 1 . . . Parts Damaged 1 | . . . . . . . . . . . 1 . . . Bothacking | -11 -10 -10 -10 -9 -8 -8 -8 -7 -6 -6 -6 -5 -4 -3 ------------ Run | Yrd Mat Min Exi Min Mat Gar Mat Fac Fac Was Fac Fac Fac Res Used RIF Installer 1 | . . . . . . 1 . . . . . . . . Robots Hacked 6 | . . . . . . . . 6 . . . . . . Non-combat 6 | . . . . . . . . 6 . . . . . . Combat . | . . . . . . . . . . . . . . . Robot Hacks Applied 9 | . . . . . . . . 9 . . . . . . generate_echo 1 | . . . . . . . . 1 . . . . . . map_walls 1 | . . . . . . . . 1 . . . . . . randomize_corridors 2 | . . . . . . . . 2 . . . . . . map_earth 1 | . . . . . . . . 1 . . . . . . drop_inventory 1 | . . . . . . . . 1 . . . . . . map_route 1 | . . . . . . . . 1 . . . . . . mark_security 1 | . . . . . . . . 1 . . . . . . link_fov 1 | . . . . . . . . 1 . . . . . . Relay Couplers Released 4 | . . . . . . 4 . . . . . . . . Machine Destruction 4 | . . . . . . 4 . . . . . . . . Attached 1 | . . . . . . . . 1 . . . . . . Fabnet Peak Effective % . | . . . . . . . . . . . . . . . Robots Rewired . | . . . . . . . . . . . . . . . Allies Hacked . | . . . . . . . . . . . . . . . Hacks Repelled . | . . . . . . . . . . . . . . . Allies | -11 -10 -10 -10 -9 -8 -8 -8 -7 -6 -6 -6 -5 -4 -3 -------- Run | Yrd Mat Min Exi Min Mat Gar Mat Fac Fac Was Fac Fac Fac Res Total Allies 2 | . . . . . . 2 . . . . . . . . Largest Group 2 | . . . . . . 2 . . . . . . . . Highest-Rated Group 56 | . . . . . . 56 . . . . . . . . Highest-Rated Ally 31 | . . . . . . 31 . . . . . . . . Total Orders . | . . . . . . . . . . . . . . . Ally Attacks 19 | . . . . . . 15 . . . . . . . 4 Total Damage 331 | . . . . . . 331 . . . . . . . . Kills 4 | . . . . . . 4 . . . . . . . . Allies Corrupted . | . . . . . . . . . . . . . . . Allies Melted . | . . . . . . . . . . . . . . . Intel | -11 -10 -10 -10 -9 -8 -8 -8 -7 -6 -6 -6 -5 -4 -3 ------- Run | Yrd Mat Min Exi Min Mat Gar Mat Fac Fac Was Fac Fac Fac Res Active Infowar (turns) 8268 | 118 299 . 112 264 2024 1850 602 326 42 13 1200 458 312 648 Optics 6895 | . . . . . 1655 1821 602 326 42 13 1200 458 312 466 Sensors 2 | . . . 2 . . . . . . . . . . . IFF 2 | . . . . . . . . . . . 2 . . . Structural 48 | . . . . . . . . . . . . . . 48 Seismic 3870 | 118 299 . 110 264 2024 1055 . . . . . . . . Machine Analysis 482 | . . . . . . . 453 29 . . . . . . Triangulation 316 | . . . . . . . . . . . . . . 316 Robot Analysis Total 2 | . 1 . . . 1 . . . . . . . . . Derelict Logs Recovered 1 | . . 1 . . . . . . . . . . . . Drone Launches 9 | . . . . . . 3 . . . . . . . 6 Drone Recoveries . | . . . . . . . . . . . . . . . Exploration | -11 -10 -10 -10 -9 -8 -8 -8 -7 -6 -6 -6 -5 -4 -3 ------------- Run | Yrd Mat Min Exi Min Mat Gar Mat Fac Fac Was Fac Fac Fac Res Turns Passed 11880 | 195 1941 840 1028 264 2024 1858 602 326 42 13 1200 458 312 777 Spaces Moved 7520 | 97 661 260 314 82 725 591 185 352 112 70 2097 610 433 931 Core 143 | 2 . . . . . . . . . . . . . 141 Treads 2913 | 95 661 260 314 82 725 584 185 7 . . . . . . Legs . | . . . . . . . . . . . . . . . Wheels 7 | . . . . . . 7 . . . . . . . . Hover 2263 | . . . . . . . . . . . 666 610 433 554 Flight 2194 | . . . . . . . . 345 112 70 1431 . . 236 Fastest Speed 17 | 50 160 320 320 320 232 175 240 51 17 17 17 28 25 20 Average Speed 119 | 157 249 320 320 320 235 236 240 65 17 17 27 28 25 43 Slowest Speed 320 | 160 320 320 320 320 240 320 240 240 17 17 120 28 25 240 Overloaded Moves 23 | . . . . . . . . 14 . . 9 . . . Propulsion Burnouts . | . . . . . . . . . . . . . . . Robots Hopped 1 | . . . . . . . . . . . 1 . . . Potential Cave-ins . | . . . . . . . . . . . . . . . Cave-ins Triggered 1 | . . . . . . 1 . . . . . . . . Exploration Rate (%) 40 | 6 98 48 70 27 68 56 22 15 4 90 50 13 11 24 Regions Visited 14 Branch Regions 3 Pre-discovered Areas 2 | . 1 . 1 . . . . . . . . . . . Known Exits Taken 2 | . 1 . . . 1 . . . . . . . . . Unknown Exits Taken 9 | 1 . 1 1 1 . . 1 1 . . 1 1 1 . Scrap Searched . | . . . . . . . . . . . . . . . Spaces Dug 28 | . . . . . . . . 1 . . 12 1 7 7 Terrain Destroyed 70 | . 2 . . . 10 5 25 1 . . 12 1 7 7 Melee 28 | . . . . . . . . 1 . . 12 1 7 7 Projectile 25 | . . . . . . . 25 . . . . . . . AOE 17 | . 2 . . . 10 5 . . . . . . . . Terrain Rammed . | . . . . . . . . . . . . . . . Walls Destroyed . | . . . . . . . . . . . . . . . Machines Disabled . | . . . . . . . . . . . . . . . Actions | -11 -10 -10 -10 -9 -8 -8 -8 -7 -6 -6 -6 -5 -4 -3 --------- Run | Yrd Mat Min Exi Min Mat Gar Mat Fac Fac Was Fac Fac Fac Res Total 9684 | 118 838 270 341 85 944 959 283 435 128 70 2585 854 608 1166 Wait 1352 | . 83 9 . 3 94 260 61 29 9 . 330 211 156 107 Move 7506 | 96 660 259 313 81 725 590 184 351 112 69 2094 609 432 931 Hop 1 | . . . . . . . . . . . 1 . . . Pick Up 103 | 5 16 2 17 1 20 20 . 5 . 1 5 1 2 8 Fast Attach 76 | 7 . . 2 . 9 9 5 1 . . 15 6 . 22 Attach 55 | . 3 . 2 . 4 9 . 12 3 . 4 3 2 13 Detach 9 | . . . 2 . . 2 . . 1 . 2 . . 2 Swap 34 | . 5 . . . 5 3 . 7 . . 8 4 . 2 Drop 87 | . 6 . 5 . 26 15 3 14 . . 10 . . 8 Fire 209 | 10 65 . . . 61 43 30 . . . . . . . Melee 208 | . . . . . . . . 16 3 . 80 20 16 73 Ram . | . . . . . . . . . . . . . . . Kick . | . . . . . . . . . . . . . . . Crush . | . . . . . . . . . . . . . . . Escape Stasis 36 | . . . . . . . . . . . 36 . . . Rewire . | . . . . . . . . . . . . . . . Trap . | . . . . . . . . . . . . . . . Miscellaneous 8 | . . . . . . 8 . . . . . . . . Route ------- -11/Scrapyard -10/Materials (discovered 6 exits: *Mat x3 / *Min x2 / *Sub) -10/Mines (discovered 4 exits: *Mat x2 / *Exi / Sub) -10/Exiles -9/Mines -8/Materials (discovered 3 exits: [*Fac x2] / Gar) -8/Garrison -8/Materials -7/Factory -6/Factory -6/Waste -6/Factory (discovered 3 exits: *Fac / Low x2) -5/Factory -4/Factory -3/Research (discovered 3 exits: Arm / Qua x2) History --------- Turn | Location | Event 2 | -11/Scrapyard | Met Revision 17 37 | -11/Scrapyard | Discovered new exit (range 15) 196 | -11/Scrapyard | Entered Materials 197 | -10/Materials | Met a group of wandering Federalists 301 | -10/Materials | Central database locked down 306 | -10/Materials | Build established: Mutant 372 | -10/Materials | Discovered new exit (range 12) 693 | -10/Materials | Discovered new exit (range 10) 764 | -10/Materials | Learned location of 1 exit from Storage 812 | -10/Materials | Learned 4 Subcaves zone layouts 851 | -10/Materials | Loaded intel: 16 trap records 879 | -10/Materials | Identified exit to Subcaves 903 | -10/Materials | Learned 2 Storage zone layouts 951 | -10/Materials | Identified exit to Materials 951 | -10/Materials | Identified exit to Mines 1555 | -10/Materials | Discovered exit to Materials (range 14) 2137 | -10/Materials | Entered Mines 2324 | -10/Mines | Found the Drone Emporium 2341 | -10/Mines | Found Prototype Device 2451 | -10/Mines | Deemed a non-threat by the Exiles lab entrance 2454 | -10/Mines | Discovered new exit (range 5) 2521 | -10/Mines | Discovered exit to Materials (range 9) 2707 | -10/Mines | Found a damaged Exp. Sensor Array with a note attached 2713 | -10/Mines | Found Prototype Device 2977 | -10/Mines | Entered Exiles 3054 | -10/Exiles | Met 8R-AWN 3109 | -10/Exiles | Met EX-HEX 3217 | -10/Exiles | Met EX-BIN 3253 | -10/Exiles | Aligned with FarCom system 3256 | -10/Exiles | Given EX-Vault access code 3336 | -10/Exiles | Opened EX-Vault 3372 | -10/Exiles | Identified Bomb Drone Bay 3378 | -10/Exiles | Identified Exp. Sensor Array 3471 | -10/Exiles | Found Army-in-a-Box 3543 | -10/Exiles | Warned to stay clear of 0b10 Research branches 3629 | -10/Exiles | Met EX-DEC 3652 | -10/Exiles | Learned location of Zion (-7) 3966 | -10/Exiles | Discovered new exit (range 11) 4005 | -10/Exiles | Left Exiles lab with Army-in-a-Box 4005 | -10/Exiles | Entered Mines 4256 | -9/Mines | Discovered new exit (range 5) 4269 | -9/Mines | Entered Materials 4269 | -8/Materials | Evolved 4 slots: Propulsion x2, Utility x2 4762 | -8/Materials | Met 7R-MNS 4805 | -8/Materials | Garrison activated, responded to threat 4914 | -8/Materials | Build established: Scavenger-Mutant 5096 | -8/Materials | Discovered new exit (range 8) 5511 | -8/Materials | Build established: Mutant 5946 | -8/Materials | Discovered new exit (range 5) 6293 | -8/Materials | Identified exit to Garrison 6293 | -8/Materials | Entered Garrison 6483 | -8/Garrison | Rescued a captive Derelict 6483 | -8/Garrison | Rescued a captive Derelict 6646 | -8/Garrison | Triggered checkpoint 6686 | -8/Garrison | Garrison Relay disabled 6891 | -8/Garrison | Triggered checkpoint 7226 | -8/Garrison | Installed Relay Interface Framework 7269 | -8/Garrison | Spotted B-75 Beast 7361 | -8/Garrison | Destroyed B-75 Beast 7388 | -8/Garrison | Crushed by falling debris 7388 | -8/Garrison | Core integrity fell below 50% 7388 | -8/Garrison | Core integrity fell below 20% 7389 | -8/Garrison | Lost 3 parts (2n1u) 7688 | -8/Garrison | Build established: Scavenger-Mutant 8132 | -8/Garrison | Discovered new exit (range 8) 8151 | -8/Garrison | Entered Materials 8587 | -8/Materials | Build established: Scavenger-Skirmisher 8698 | -8/Materials | Discovered new exit (range 19) 8753 | -8/Materials | Entered Factory 8753 | -7/Factory | Evolved 2 slots: Propulsion x2 8785 | -7/Factory | System corruption reached 10% 9053 | -7/Factory | Discovered new exit (range 20) 9079 | -7/Factory | Entered another Factory area 9079 | -6/Factory | Evolved 2 slots: Propulsion x1, Utility x1 9121 | -6/Factory | Sucked down chute 9121 | -6/Factory | Entered Waste 9123 | -6/Waste | Spotted C-40 Crusher 9126 | -6/Waste | Spotted C-40 Crusher 9127 | -6/Waste | Spotted C-40 Crusher 9129 | -6/Waste | Spotted C-40 Crusher 9132 | -6/Waste | Spotted C-40 Crusher 9132 | -6/Waste | Spotted C-40 Crusher 9133 | -6/Waste | Discovered new exit (range 10) 9134 | -6/Waste | Entered Factory 9389 | -6/Factory | Build established: Scavenger-Sprinter 9922 | -6/Factory | Garrison activated, responded to threat 9986 | -6/Factory | Lost 6 parts (1p5n) 10065 | -6/Factory | Identified exit to Lower Caves 10302 | -6/Factory | Spotted B-75 Beast 10324 | -6/Factory | Discovered new exit (range 17) 10334 | -6/Factory | Entered another Factory area 10334 | -5/Factory | Evolved 2 slots: Utility x1, Weapon x1 10466 | -5/Factory | Repaired Blade Saw 10525 | -5/Factory | Build established: Sprinter 10537 | -5/Factory | Repaired Cld. Airjet 10651 | -5/Factory | Discovered new exit (range 10) 10792 | -5/Factory | Entered another Factory area 10792 | -4/Factory | Evolved 2 slots: Power x1, Propulsion x1 10938 | -4/Factory | Discovered new exit (range 9) 11104 | -4/Factory | Entered Research 11104 | -3/Research | Evolved 2 slots: Utility x2 11202 | -3/Research | Released all parts (9) 11255 | -3/Research | Lost 12 parts (1p8n1u2w) 11282 | -3/Research | Core integrity fell below 50% 11339 | -3/Research | Core integrity fell below 20% 11357 | -3/Research | Lost 3 allies 11371 | -3/Research | Lost 3 parts (1p1n1u) 11484 | -3/Research | Build established: Mutant 11622 | -3/Research | Found Prototype Device 11622 | -3/Research | Identified Exp. Thermal Shield 11771 | -3/Research | Lost 6 parts (1p4n1u) 11790 | -3/Research | Identified exit to Armory 11790 | -3/Research | Identified exit to Quarantine 11881 | -3/Research | Destroyed by P-80 Master with Gamma Rifle Last Messages --------------- 11773_ K-01 Serf collects debris. 11777_ Acquired Xenon Bombardment Thruster. 11779_ K-01 Serf collects debris. 11787_ ALERT: Potential suspicious activity detected, Programmers report to Research Zone 4E. 11790_ Connecting with Terminal... >>Access(Branch) Found 3 branch access points: (22,4) Armory (97,96) Quarantine (176,133) Quarantine Map updated. 11790_ Connecting with Terminal... 11794_ Acquired Adv. Cooling System. 11800_ Acquired Enh. Force Lance. 11873_ W-44 Eye sends out distress signal. 11873_ Destroyed Gamma Rifle. 11876_ P-80 Master destroyed. 11878_ Nuclear Pulse Array destroyed. 11881_ Xenon Bombardment Thruster destroyed. Map ----- +----------------------------------------------------+ | ?????????????????????????????????????????????????? | | ?????????????????????????????????????????????????? | | ?????????????????????????????????????????????????? | | ?????????????????????????????????????????????????? | | ?????????????????????????????????????????????????? | | ?????????????????????????????????????????????????? | | ?????????????????????????????????????????????????? | | ?????????????????????????????????????????????????? | | ?????????????????????????????????????????????????? | | ?????????????????????????????????????????????????? | | ?????????????????????????????????????????????????? | | ?????????????????????????????????????????????????? | | ?????????????????????????????????????????????????? | | ?????????????????????????????????????????????????? | | ?????????????????????????????????????????????????? | | ?????????????????????????????????????????????????? | | ?????????????????????????????????????????????????? | | ?????????????????????????????????????????????????? | | ?????????????????????????????????????????????????? | | ?????????????#################???????????????????? | | ?????????????# ## !#???????????????????? | | ?????????????# ## #???????????????????? | | ?????????????# ""#; #???????????????????? | | ?????????????# ""## = #???????????????????? | | ?????????????#]! ""## #??????????##???????? | | ?????????????#] T## @p! #???????###Y#???????? | | ?????????????#]= ""#####/######??? #???????? | | ???????####### ""#?# %p #??? #???????? | | ???????# T # ""#?# #?? #???????? | | ???????# # #?# #?? #???????? | | ???????# # #?# lw #? """ #???????? | | ???????# #+#+####### g #? T" #???????? | | ???????# # # """ #???????? | | ???????# + g # #???????? | | ???????# # g + #???????? | | ???????# ###### ##########???????? | | ???????# #????# ##???????????????? | | ???????# #????# T#???????????????? | | ???????# #????# #???????????????? | | ???????# #????# ##???????????????? | | ???????#######????## ## ??????????????? | | ????????# #?????# #######??????????? | | ????????# #?????# ????????? | | ????????# #?????# ????????? | | ????????# ####### ????????? | | ????????# # ????????? | | ????????# # ????????? | | ????????# # #####+####### ?????????? | | ????????# # # ##????????????? | | ????????# # # ##????????????? | +----------------------------------------------------+ Best States ------------- Heat Dissipation 77 Energy Generation 35 Energy Capacity 360 Matter Stores 300 Matter Capacity 300 Sight Range 20 Robot Scan Range 20 Terrain Scan Density 10 Additional Mass Support 6 Armor Coverage 450 Resistance: TH 30 Evasion (%) 66 Melee Accuracy 16 Recoil Reduction 4 Force Boost 20 Relay Coupler Types 1 Relay Coupler Value 28 Item Schematics ----------------- Aerolev Unit | -8/Materials | Scanalyzed Xenon Bombardment Thruster | -6/Factory | Scanalyzed Robot Schematics ------------------ None Fabricated ------------ Nothing Repaired ---------- Blade Saw | 30% | -5/Factory Cld. Airjet | 37% | -5/Factory Alien Tech Used ----------------- None Achievements -------------- None Challenges ------------ None Game ------ Seed ThrowingMultinovaSpoofer Manual? 0 Play Time 01:25:05 Cumulative 210.9 hours Start 2025.07.25 @ 17:09:16 End 2025.07.25 @ 18:44:28 Sessions 1 Manual Loads 0 Difficulty Rogue Special Mode None Game No. 185 Rogue 185 Adventurer 0 Explorer 0 Win Type - Total 11 Types 5/0/4/2/0/0/0/0/0/0 Lore% 76 Gallery% 71 Achievement% 67 Wizard Run 0 Options --------- Layout 1 ASCII 0 Keyboard 0 Movement Numpad Keybinds 0 Fullscreen 1 Font 32/SmallcapsGlow Map View 77x35 Zoom Use 0% Tactical HUD 1 Map Filters NONE Filters NONE Steam 1 RUN: 5cc232e1-dd30-4a6d-be08-2be7bac35bb6